Cogmind - Beta 13 @@@ ROGUE MODE // 2024.03.12 @ 17:24:56 Player: Carpathian Result: Self-destructed Performance ------------- Evolutions (1) 500 Regions Visited (3) 600 Robots Destroyed (20) 100 Value Destroyed (626) 626 Prototype IDs (0) 0 Alien Tech Used (0) 0 Bonus (0) 0 TOTAL SCORE: 1826 Bonus ------- None Cogmind --------- Core Integrity 15/400 Matter 173/300 Energy 100/100 System Corruption 4% Temperature Cool (6) Movement Core (350) Ox6 Location -9/Mines Parts ------- > --- POWER (1) -------- (None) > --- PROPULSION (2) --- (None) > --- UTILITY (4) ------ Large Storage Unit > --- WEAPON (2) ------- (None) > --- INVENTORY (15) --- Ion Engine Improved Ion Engine Light Treads Light Treads Aluminum Leg Beam Rifle Peak State ------------ > --- POWER ------------ Ion Engine > --- PROPULSION ------- Aluminum Leg Aluminum Leg > --- UTILITY ---------- Heat Sink Large Storage Unit Improved Targeting Computer > --- WEAPON ----------- Assault Rifle Heavy Assault Rifle > --- INVENTORY -------- Ion Engine Light Treads Light Treads Beam Rifle [Rating: 10] Favorites ----------- Power Ion Engine Engine Ion Engine Propulsion Aluminum Leg Leg Aluminum Leg Utility Heat Sink Device Heat Sink Storage Large Storage Unit Processor Improved Targeting Computer Weapon Assault Rifle Energy Gun Beam Rifle Ballistic Gun Assault Rifle Build | -11 -10 -9 -9 ------- Run | Yrd Mat Mat Min Slots Evolved 2 | . . 2 . Power . | . . . . Propulsion . | . . . . Utility 2 | . . 2 . Weapon . | . . . . Parts Attached 15 | 6 1 6 2 Power 2 | 1 . 1 . Engine 2 | 1 . 1 . Core . | . . . . Reactor . | . . . . Propulsion 4 | 2 . 2 . Treads . | . . . . Leg 4 | 2 . 2 . Wheel . | . . . . Hover . | . . . . Flight . | . . . . Utility 4 | 1 1 2 . Device 1 | . 1 . . Storage 2 | 1 . 1 . Processor 1 | . . 1 . Hackware . | . . . . Protection . | . . . . Artifact . | . . . . Weapon 5 | 2 . 1 2 Energy Gun 1 | . . . 1 Energy Cannon . | . . . . Ballistic Gun 4 | 2 . 1 1 Ballistic Cannon . | . . . . Launcher . | . . . . Special Weapon . | . . . . Impact Weapon . | . . . . Slashing Weapon . | . . . . Piercing Weapon . | . . . . Special Melee Weapon . | . . . . Unidentified Prototypes . | . . . . Parts Lost 7 | . . . 7 Power 1 | . . . 1 Propulsion 2 | . . . 2 Utility 2 | . . . 2 Weapon 2 | . . . 2 Highest Loss Streak 4 | . . . 4 To Critical Strikes . | . . . . Average Slot Usage (%) 83 | . 94 83 82 Engine 10 | . 14 11 9 Leg 21 | . 28 22 20 Device 9 | . 8 11 9 Storage 11 | . 14 11 11 Processor 8 | . . 6 11 Energy Gun 3 | . . . 6 Ballistic Gun 18 | . 28 22 14 Naked Turns . | . . . . Heaviest Build 31 | 13 14 31 31 Greatest Support 20 | 20 20 20 20 Greatest Overweight (x) 7 | . . 1 7 Average Overweight (x) . | . . . 1 Largest Inventory Capacity 15 | 8 8 15 15 Average Capacity 13 | 7 8 13 15 Most Carried 7 | 5 6 7 6 Average Carried 4 | 1 4 4 5 Final Capacity 15 | 8 8 15 15 Final Carried 6 | 3 5 5 6 Class Distribution -------------------- 71% | Scavenger-Mutant 28% | Mutant Dominant Class ---------------- Mutant | -10/Materials Scavenger-Mutant | -9/Materials Scavenger-Mutant | -9/Mines Resources | -11 -10 -9 -9 ----------- Run | Yrd Mat Mat Min Matter Collected 501 | 220 52 152 77 Remotely . | . . . . Salvage Created 696 | . 64 278 354 Parts 44 | . 5 18 21 Haulers Intercepted . | . . . . Recyclers Shooed . | . . . . Parts Field Recycled . | . . . . Retrieved Matter . | . . . . Parts Self-Destructed . | . . . . Prevented . | . . . . Kills | -11 -10 -9 -9 ------- Run | Yrd Mat Mat Min Combat Hostiles Destroyed 19 | . 2 8 9 Guns 19 | . 2 8 9 Classes Destroyed 4 | . 1 2 1 Tunneler 1 | . . . 1 Swarmer 3 | . . 3 . Grunt 14 | . 2 3 9 Sentry 2 | . . 2 . Best Kill Streak 8 | . 2 5 8 Combat Bots Only 8 | . 2 5 8 Max Kills in Single Turn 2 | . 1 1 2 Gunslinging 1 | . . . 1 Exploded . | . . . . Melee . | . . . . Uniques/NPCs Destroyed . | . . . . Combat | -11 -10 -9 -9 -------- Run | Yrd Mat Mat Min Hostile Shots Fired 131 | . 4 40 87 Missed 32 | . 2 11 19 Damage Taken 1249 | . 23 351 875 Core 385 | . . 86 299 Absorbed by Shields . | . . . . Core Remaining (%) 100 | 100 100 . . Volleys Fired 70 | . 3 17 50 Largest 2 | . 2 2 2 Hottest 76 | . 40 43 76 Shots Fired 127 | . 6 34 87 Gun 127 | . 6 34 87 Cannon . | . . . . Launcher . | . . . . Special . | . . . . Kinetic 111 | . 6 34 71 Thermal 16 | . . . 16 Explosive . | . . . . Electromagnetic . | . . . . Robot Hit Streak 9 | . 5 6 9 Robot Miss Streak 4 | . . 2 4 Penetration Max . | . . . . Secondary Targets 6 | . . 3 3 Max Gunslinging Chain 1 | . . 1 1 Shots Hit Robots 56 | . 5 21 30 Core Hits 31 | . 4 13 14 Critical Kills 1 | . 1 . . Critical Parts Destroyed . | . . . . Critical Strikes 1 | . 1 . . Destroy 1 | . 1 . . Melee Attacks . | . . . . Impact . | . . . . Slashing . | . . . . Piercing . | . . . . Sneak Attacks . | . . . . Combat Hostiles . | . . . . Follow-up Attacks . | . . . . Damage Inflicted 766 | . 55 245 466 Guns 731 | . 55 245 431 Cannons . | . . . . Explosions . | . . . . Melee . | . . . . Ramming 35 | . . . 35 Kinetic 731 | . 55 245 431 Thermal . | . . . . Explosive . | . . . . Electromagnetic . | . . . . Impact . | . . . . Slashing . | . . . . Piercing . | . . . . Highest Corruption 4 | . . . 4 Average Corruption 3 | . . . 3 Corruption Purged . | . . . . Corruption Blocked . | . . . . Effects 1 | . . . 1 Matter Fused 1 | . . . 1 Overload Shots . | . . . . Overflow Damage . | . . . . Projectiles . | . . . . Explosions . | . . . . Melee . | . . . . Knockbacks . | . . . . Impact . | . . . . Kinetic . | . . . . Secondary . | . . . . Self-Inflicted Damage 35 | . . . 35 Shots . | . . . . Rammed . | . . . . Targets Rammed . | . . . . Kicked . | . . . . Crushed . | . . . . Highest Temperature 6 | . 6 . . Average Temperature 6 | . 6 . . Received Heat Transfer 534 | . 12 114 408 Siege Activations . | . . . . Robots Corrupted . | . . . . Combat Hostiles . | . . . . Parts Fried . | . . . . Impact Corruptions . | . . . . Robots Melted . | . . . . Combat Hostiles . | . . . . Parts Melted . | . . . . Heat Transferred . | . . . . Parts Sabotaged . | . . . . Parts Stolen . | . . . . Parts Stripped . | . . . . Power Chain Reactions . | . . . . Alert | -11 -10 -9 -9 ------- Run | Yrd Mat Mat Min Peak Influence 236 | . 47 236 145 Initial 19 | . . 19 13 Average 71 | . 30 173 26 Maximum Alert Level 1 | . . 1 . Low Security (%) 86 | 100 100 56 100 Level 1 13 | . . 43 . Level 2 . | . . . . Level 3 . | . . . . Level 4 . | . . . . Level 5 . | . . . . High Security . | . . . . Max Security . | . . . . Squads Dispatched . | . . . . Investigation . | . . . . Extermination . | . . . . Reinforcement . | . . . . Assault . | . . . . Garrison . | . . . . Intercept . | . . . . Searches Triggered . | . . . . Construction Impeded . | . . . . Haulers Reinforced . | . . . . Active Scanning Responses . | . . . . Cargo Convoy Interrupts . | . . . . Stealth | -11 -10 -9 -9 --------- Run | Yrd Mat Mat Min Distress Signals . | . . . . Communications Jammed . | . . . . Distress Signals . | . . . . Times Spotted 21 | . 2 8 11 Peak Tracking Total 5 | . 2 5 4 Tactical Retreats . | . . . . Traps | -11 -10 -9 -9 ------- Run | Yrd Mat Mat Min Traps Triggered . | . . . . Indirectly . | . . . . Trap Hack Attempts . | . . . . Triggered . | . . . . Disarmed . | . . . . Reprogrammed . | . . . . Reused . | . . . . Traps Extracted . | . . . . Installed . | . . . . Triggered . | . . . . Machines | -11 -10 -9 -9 ---------- Run | Yrd Mat Mat Min Machines Disabled 1 | . . . 1 Max in Single Turn 1 | . . . 1 Machines Repaired . | . . . . Machines Dismantled . | . . . . Machines Sabotaged . | . . . . Overloaded Fab Kills . | . . . . Hacking | -11 -10 -9 -9 --------- Run | Yrd Mat Mat Min Machines Accessed 1 | . 1 . . Terminals 1 | . 1 . . Fabricators . | . . . . Repair Stations . | . . . . Recycling Units . | . . . . Scanalyzers . | . . . . Garrison Access . | . . . . Total Hacks 4 | . 4 . . Successful 1 | . 1 . . Failed 3 | . 3 . . Catastrophic 1 | . 1 . . Database Lockouts . | . . . . Manual . | . . . . Terminals 4 | . 4 . . Fabricators . | . . . . Repair Stations . | . . . . Recycling Units . | . . . . Scanalyzers . | . . . . Garrison Access . | . . . . Terminal Hacks 1 | . 1 . . Branch Access Points 1 | . 1 . . Fabricator Hacks . | . . . . Repair Station Hacks . | . . . . Recycling Unit Hacks . | . . . . Scanalyzer . | . . . . Garrison Access Hacks . | . . . . Unauthorized Hacks . | . . . . Terminals . | . . . . Fabricators . | . . . . Repair Stations . | . . . . Recycling Units . | . . . . Scanalyzers . | . . . . Garrison Access . | . . . . Data Cores Recovered . | . . . . Used . | . . . . Hacking Detections 1 | . 1 . . Full Trace Events 1 | . 1 . . Feedback Events . | . . . . Feedback Blocked . | . . . . Robot Schematics Acquired . | . . . . Robots Built . | . . . . Authchips . | . . . . Time . | . . . . Total Robot Build Rating . | . . . . Part Schematics Acquired . | . . . . Parts Built . | . . . . Authchips . | . . . . Time . | . . . . Total Part Build Rating . | . . . . Parts Repaired . | . . . . Time . | . . . . Parts Recycled . | . . . . Recycled Matter . | . . . . Retrieved Matter . | . . . . Retrieved Components . | . . . . Parts Scanalyzed . | . . . . Part Schematics Acquired . | . . . . Parts Damaged . | . . . . Bothacking | -11 -10 -9 -9 ------------ Run | Yrd Mat Mat Min Used RIF Installer . | . . . . Robots Hacked . | . . . . Non-combat . | . . . . Combat . | . . . . Robot Hacks Applied . | . . . . Relay Couplers Released . | . . . . Fabnet Peak Effective % . | . . . . Robots Rewired . | . . . . Allies Hacked . | . . . . Hacks Repelled . | . . . . Allies | -11 -10 -9 -9 -------- Run | Yrd Mat Mat Min Total Allies . | . . . . Largest Group . | . . . . Highest-Rated Group . | . . . . Highest-Rated Ally . | . . . . Total Orders . | . . . . Ally Attacks . | . . . . Total Damage . | . . . . Kills . | . . . . Allies Corrupted . | . . . . Allies Melted . | . . . . Intel | -11 -10 -9 -9 ------- Run | Yrd Mat Mat Min Robot Analysis Total . | . . . . Derelict Logs Recovered . | . . . . Drone Launches . | . . . . Drone Recoveries . | . . . . Exploration | -11 -10 -9 -9 ------------- Run | Yrd Mat Mat Min Turns Passed 1335 | 80 156 418 681 Spaces Moved 579 | 62 107 199 211 Core 22 | 13 . . 9 Treads . | . . . . Legs 557 | 49 107 199 202 Wheels . | . . . . Hover . | . . . . Flight . | . . . . Fastest Speed 50 | 50 120 120 190 Average Speed 167 | 105 120 177 199 Slowest Speed 400 | 120 120 190 400 Overloaded Moves . | . . . . Propulsion Burnouts . | . . . . Robots Hopped . | . . . . Cave-ins Triggered . | . . . . Exploration Rate (%) 14 | 5 20 15 16 Regions Visited 3 Branch Regions 1 Pre-discovered Areas . | . . . . Known Exits Taken . | . . . . Unknown Exits Taken 3 | 1 1 1 . Scrap Searched . | . . . . Spaces Dug . | . . . . Terrain Destroyed . | . . . . Melee . | . . . . Projectile . | . . . . AOE . | . . . . Terrain Rammed 8 | . . . 8 Walls Destroyed . | . . . . Machines Disabled . | . . . . Actions | -11 -10 -9 -9 --------- Run | Yrd Mat Mat Min Total 811 | 76 129 233 373 Wait 118 | . 16 1 101 Move 576 | 61 106 198 211 Hop . | . . . . Pick Up 19 | 9 3 6 1 Fast Attach . | . . . . Attach 8 | 6 1 1 . Detach . | . . . . Swap 7 | . . 5 2 Drop 5 | . . 5 . Fire 70 | . 3 17 50 Melee . | . . . . Ram 8 | . . . 8 Kick . | . . . . Crush . | . . . . Escape Stasis . | . . . . Rewire . | . . . . Trap . | . . . . Miscellaneous . | . . . . Route ------- -11/Scrapyard -10/Materials (discovered 2 exits: [*Mat] / Min) -9/Materials -9/Mines History --------- Turn | Location | Event 7 | -11/Scrapyard | Discovered new exit (range 15) 81 | -11/Scrapyard | Entered Materials 177 | -10/Materials | Identified exit to Mines 225 | -10/Materials | Discovered new exit (range 10) 237 | -10/Materials | Entered another Materials area 237 | -9/Materials | Evolved 2 slots: Utility x2 303 | -9/Materials | Build established: Mutant 610 | -9/Materials | Build established: Scavenger-Mutant 624 | -9/Materials | Discovered new exit (range 14) 655 | -9/Materials | Entered Mines 696 | -9/Mines | Excavation squad dispatched 696 | -9/Mines | A large section of the Mines collapsed 946 | -9/Mines | Excavation squad dispatched 1196 | -9/Mines | Excavation squad dispatched 1222 | -9/Mines | Core integrity fell below 50% 1297 | -9/Mines | Destroyed 8 combat bots 1316 | -9/Mines | Lost 4 parts (1p2n1w) 1319 | -9/Mines | Core integrity fell below 20% 1336 | -9/Mines | Self-destructed Last Messages --------------- 01258_ G-34 Mercenary destroyed. 01258_ Switching to secondary target: G-34 Mercenary. 01260_ U-05 Engineer lays Concrete. 01261_ G-34 Mercenary destroyed. 01266_ Broken Ion Engine destroyed. 01270_ G-34 Mercenary destroyed. 01270_ Switching to secondary target: G-34 Mercenary. 01270_ G-34 Mercenary destroyed. 01272_ Broken Aluminum Leg destroyed. 01275_ Aluminum Leg destroyed. 01276_ G-34 Mercenary destroyed. 01285_ Assault Rifle destroyed. 01293_ Acquired 41 matter. 01307_ T-07 Excavator destroyed. 01311_ G-34 Mercenary destroyed. 01313_ Acquired 36 matter. 01319_ System corrupted: Matter fused (-6). 01319_ Hvy. Assault Rifle destroyed. 01321_ Acquired Aluminum Leg. 01336_ Broken Imp. Targeting Computer destroyed. Map ----- +----------------------------------------------------+ | | | | | | | | | | | | | ?????????????????????????????????????????????????? | | ?????????????????????????????????????????????????? | | ???????????????????????###???????????????????????? | | ?????????????????????### ##?????????????????????? | | ????????????????????## ##????????????????????? | | ????????????????????#%! #??????????####??????? | | ???????????????????##%%= #?????????## ##?????? | | ????????????????????%%*=! #?????##### ######? | | ????????????????????#*%|*= #?????# ## | | ????????????????????#%t=% % #?????# # | | ?????????????????????#%! ;??????# ### " | | ?????????????????????#= ???#### ## | | ?????????????????????# #???# ## " # | | ??????????????????????#!=! #???# ### | | ??????????????????????#g=%*##??# ##### ##?? | | ??????????????????????# g #### #???## #??? | | ?????????????????????##t t tt #????# ##?? | | ?????????????????????# = %% #????# #?? | | ?????????????????????# *t#######????# #?? | | ?????????????????????# t @ t#####?????# ##?? | | ?????????????????????## ##????## ###??? | | ??????????????????????# #?????#####????? | | ??????????????????????# #??????????????? | | ??????????????????????## #??????????????? | | ???????????????????????## ##??????????????? | | ????????????????????????## ##???????????????? | | ?????????????????????????# ##????????????????? | | ?????????????????????????## ###?????????????????? | | ??????????????????????????####???????????????????? | | ?????????????????????????????????????????????????? | | ?????????????????????????????????????????????????? | | ?????????????????????????????????????????????????? | | ?????????????????????????????????????????????????? | | ?????????????????????????????????????????????????? | | ?????????????????????????????????????????????????? | | ?????????????????????????????????????????????????? | | ?????????????????????????????????????????????????? | | ?????????????????????????????????????????????????? | | ?????????????????????????????????????????????????? | | ?????????????????????????????????????????????????? | | ?????????????????????????????????????????????????? | | ?????????????????????????????????????????????????? | | ?????????????????????????????????????????????????? | | ?????????????????????????????????????????????????? | +----------------------------------------------------+ Best States ------------- Heat Dissipation 38 Energy Generation 10 Energy Capacity 250 Matter Stores 300 Matter Capacity 300 Sight Range 16 Terrain Scan Density 10 Evasion (%) 55 Targeting Accuracy 6 Item Schematics ----------------- None Robot Schematics ------------------ None Fabricated ------------ Nothing Alien Tech Used ----------------- None Achievements -------------- None Challenges ------------ None Game ------ Seed ThermalGammaBroadsword Manual? 0 Play Time 00:08:44 Cumulative 15.0 hours Start 2024.03.12 @ 17:18:53 End 2024.03.12 @ 17:24:56 Sessions 1 Manual Loads 0 Difficulty Rogue Special Mode None Game No. 80 Rogue 80 Adventurer 0 Explorer 0 Win Type - Total 0 Types 0/0/0/0/0/0/0/0/0 Lore% 6 Gallery% 21 Achievement% 15 Wizard Run 0 Options --------- Layout 0 ASCII 0 Keyboard 0 Movement Arrows Keybinds 0 Fullscreen 2 Font 24/Smallcaps Map View 76x50 Zoom Use 0% Tactical HUD 1 Map Filters NONE Filters NONE Steam 1 RUN: 43cdba70-a903-400c-b7e7-241d6b83d815